[Event "2nd Doppelbauer Kiel GM 2022"]
[Site "Kiel"]
[Date "2022.06.30"]
[Round "1.1"]
[White "Bogner, Sebastian"]
[Black "Parvanyan, Ashot"]
[Result "1-0"]
[ECO "C78"]
[WhiteElo "2553"]
[BlackElo "2455"]
[Annotator "TA"]
[PlyCount "77"]
[EventDate "2022.06.30"]
[EventType "tourn"]
[EventCountry "GER"]
[SourceTitle "playchess.com"]
[Source "ChessBase"]
[SourceQuality "1"]
[TimeControl "40/5400+30:1800+30"]

{[%evp 17,77,33,36,4,22,23,12,8,15,4,9,10,10,0,33,22,18,-31,-22,-27,-33,-33,13,4,12,11,11,-46,-23,-19,0,0,0,0,18,18,15,12,22,22,20,34,35,23,70,68,253,260,452,431,452,456,458,460,909,903,1941,1995,1864,1877,2393,2412]} 1. e4 e5 2. Nf3 Nc6 3. Bb5 a6 4. Ba4 Nf6 5. O-O b5 6. Bb3 Bc5 7. c3 d6 8. a4 Rb8 9. d4 Bb6 10. a5 {C78: Ruy Lopez: Archangelsk and Möller Defences.} Ba7 (10... Nxa5 11. Rxa5 Bxa5 12. dxe5 $14) (10... Bxa5 $2 11. dxe5 (11. d5 Ne7 $18) 11... dxe5 12. Qxd8+ Kxd8 13. Bd5 (13. Bxf7 Bb6 $16) 13... Nxd5 14. exd5 $18) 11. h3 O-O 12. Be3 {The position is equal.} exd4 13. cxd4 Nb4 14. Bd2 $5 {[%mdl 4] A promising side line.} Nc6 15. Be3 Nb4 16. Nc3 {16.Nc3 has become a bit dusty these days.} Bb7 17. Bg5 $5 {[%mdl 4] An interesting side line.} (17. Ng5 $11 {is more appropriate.}) 17... h6 $15 18. Bh4 c5 $1 (18... g5 19. Nxg5 hxg5 20. Bxg5 $16) 19. Re1 c4 (19... Re8 $1 $15) 20. Bc2 $11 {[#]} Nxc2 $146 ({Predecessor:} 20... g5 21. Nxg5 hxg5 22. Bxg5 Nxc2 23. Qxc2 b4 24. Nd5 Bxd5 25. exd5 Bxd4 26. Qxc4 Bxb2 27. Rab1 Bc3 28. Qh4 Re8 29. Rxe8+ Qxe8 30. Bxf6 Bxf6 31. Qxf6 {1-0 (74) Jakovenko,D (2681)-Jones,G (2688) Khanty-Mansiysk 2019}) 21. Qxc2 Re8 22. d5 ({White should try} 22. Rad1 $11) 22... g5 $1 $15 23. Bg3 b4 24. Na4 Rc8 25. Kh1 $1 Qd7 26. Nb6 Bxb6 27. axb6 b3 28. Qb1 c3 29. bxc3 Rxc3 30. Nd4 {Black must now prevent Nf5.} Rxe4 31. Rxe4 $14 Bxd5 $2 {[#] A mistake that costs the game.} ({Better is} 31... b2 $1 $14 32. Qxb2 Nxe4) 32. f3 $1 $18 ({Avoid the trap} 32. b7 $2 Bxb7 33. f3 Nxe4 $19) 32... Bxe4 (32... Rxf3 {keeps fighting.} 33. Nxf3 Nxe4) 33. Qb2 {White is clearly winning.} Rd3 34. fxe4 Nxe4 (34... Rxg3 $2 35. Nf5 Ne8 36. Nxg3) 35. Be1 g4 (35... Nc5 $142 36. Bb4 Ne4) 36. hxg4 {[#] Nf5 is the strong threat.} h5 37. Nf5 {[%csl Gf5][%cal Rb2g7]} f6 38. Qe2 b2 39. Qxb2 {[%emt 0:19:04] Weighted Error Value: White=0.08 (flawless) /Black=0.27 (precise)} 1-0

[Event "2nd Doppelbauer Kiel GM 2022"]
[Site "Kiel"]
[Date "2022.06.30"]
[Round "1.2"]
[White "Horvath, Dominik"]
[Black "Ernst, Sipke"]
[Result "1/2-1/2"]
[ECO "C50"]
[WhiteElo "2482"]
[BlackElo "2547"]
[Annotator "TA"]
[PlyCount "41"]
[EventDate "2022.06.30"]
[EventType "tourn"]
[EventCountry "GER"]
[SourceTitle "playchess.com"]
[Source "ChessBase"]
[SourceQuality "1"]
[TimeControl "40/5400+30:1800+30"]

{[%evp 10,41,19,0,0,0,0,2,0,0,14,0,0,0,0,0,27,24,21,0,13,0,58,12,12,0,0,0,0,0,0,0,0,0]} 1. e4 e5 2. Nf3 Nc6 3. Bc4 Nf6 4. d3 Bc5 5. Nc3 a6 6. Bg5 h6 {C50: Hungarian Defence and Giuoco Pianissimo.} 7. Bxf6 Qxf6 8. Nd5 {[%csl LRc7,LRf6]} Qd8 9. c3 {[%cal Bc2c3,Bc3d4][%mdl 32]} O-O 10. d4 exd4 11. cxd4 Ba7 12. O-O b5 13. Bb3 {[#]} Ne7 $146 ({Predecessor:} 13... Na5 14. Re1 Bb7 15. a4 c6 16. Ne3 Nxb3 17. Qxb3 Qf6 18. axb5 axb5 19. Nf5 d6 {1-0 (31) Padsha,S (1249)-Van Alphen,J (1558) IECC email 2004}) 14. Ne5 Nc6 15. Rc1 Nxd4 (15... Nxe5 $11 16. dxe5 (16. Nxc7 Nc4 $17) 16... c5) 16. Nxc7 (16. Rxc7 $14 Ne6 {[#]} 17. Qh5 $1) 16... Rb8 $1 $11 {The position is equal.} 17. Ng6 Qg5 $1 18. Nxf8 {[%cal Og1h1] Kh1! is the strong threat. Dancing on a razor blade. Pair of Knights!} Qxc1 $1 {[%mdl 64] [#] Decoy} 19. Qxc1 ({But not} 19. Bxf7+ $2 Kxf8 20. Qxc1 (20. Ne6+ $2 dxe6 21. Qxc1 Ne2+ 22. Kh1 Nxc1 $19) 20... Ne2+ 21. Kh1 Nxc1 22. Rxc1 Kxf7 $19) 19... Ne2+ 20. Kh1 Nxc1 21. Rxc1 {An interesting draw.  Weighted Error Value: White=0.12 (very precise) /Black=0.10 (very precise)} 1/2-1/2

[Event "2nd Doppelbauer Kiel GM 2022"]
[Site "Kiel"]
[Date "2022.06.30"]
[Round "1.4"]
[White "Pajeken, Jakob Leon"]
[Black "Farokhi, Keyvan"]
[Result "1-0"]
[ECO "D74"]
[WhiteElo "2398"]
[BlackElo "2360"]
[Annotator "TA"]
[PlyCount "47"]
[EventDate "2022.06.30"]
[EventType "tourn"]
[EventCountry "GER"]
[SourceTitle "playchess.com"]
[Source "ChessBase"]
[SourceQuality "1"]
[TimeControl "40/5400+30:1800+30"]

{[%evp 21,47,16,21,10,72,65,182,170,362,377,731,737,751,750,728,700,821,826,881,879,29985,29986,29990,29991,29988,1250,1209,1147]} 1. Nf3 Nf6 2. g3 g6 3. Bg2 d5 4. c4 Bg7 5. O-O O-O 6. cxd5 Nxd5 7. d4 {[%cal Bd2d4,Bd4d5][%mdl 32]} Nb6 8. e4 Nc6 {[%cal Bb8c6,Bc6a5,Ba5c4][%mdl 32]} 9. d5 Na5 10. Qe1 Nac4 11. Nc3 e6 {[%cal Re6d5]} 12. Bg5 {D74: Fianchetto Grünfeld: Main Line (5 Nf3 0-0 6 cxd5 Nxd5 7 0-0).} Qe8 (12... f6 $11 13. Bc1 exd5) 13. b3 $16 {[%cal Bb2b3,Bb3c4][%mdl 32] [#]} exd5 $146 (13... f6 $14) ({Predecessor:} 13... Nd6 14. e5 exd5 15. exd6 Qxe1 16. Raxe1 Bxc3 17. Rc1 d4 18. dxc7 Bf5 19. Bf6 Bd3 20. Bxd4 Bxf1 21. Kxf1 {1-0 (32) Mkrtchyan,M (2300)-Khachatryan,V (2007) Yerevan 2022}) 14. bxc4 $18 {White is clearly better.} dxe4 {[#]} (14... h6) 15. Nxe4 $1 Bxa1 $2 (15... Qe6 16. Rc1 Nxc4) (15... Qc6 16. Nfd2) 16. Qxa1 {Intending Nf6+ and mate.} Qxe4 17. Bh6 {[%csl Gh6][%cal Ra1g7]} f6 18. Bxf8 {This bishop pair is nice.} Bg4 {[#]} 19. Bh6 $1 Qf5 {[#]} (19... g5 20. Qxf6) 20. Ng5 $1 {[%cal Of1e1][%mdl 512] Hoping for Re1!} Nxc4 (20... Qe5 21. Qxe5) 21. Qd4 Nd6 22. Bd5+ Kh8 23. Be6 (23. Re1 $142 Bh3 24. g4 Bxg4 25. Re7 Qb1+ 26. Kg2 Bh3+ 27. Nxh3 Qe4+ 28. Qxe4 Rg8 29. Qe6 Nf7 30. Qxf7 g5 31. Qxg8#) 23... Qe5 24. Qxe5 {Black did not feel at home in the position after the opening.  Weighted Error Value: White=0.04 (flawless) /Black=1.29} 1-0

[Event "2nd Doppelbauer Kiel GM 2022"]
[Site "Kiel"]
[Date "2022.06.30"]
[Round "1.5"]
[White "Hacker, Jonas"]
[Black "Teclaf, Pawel"]
[Result "1/2-1/2"]
[ECO "B52"]
[WhiteElo "2396"]
[BlackElo "2537"]
[Annotator "TA"]
[PlyCount "94"]
[EventDate "2022.06.30"]
[EventType "tourn"]
[EventCountry "GER"]
[SourceTitle "playchess.com"]
[Source "ChessBase"]
[SourceQuality "1"]
[TimeControl "40/5400+30:1800+30"]

{[%evp 23,94,37,52,33,39,27,25,21,20,30,20,-5,35,27,42,28,33,35,29,49,51,43,49,17,17,18,16,14,22,11,7,6,2,6,11,1,11,24,25,25,26,16,16,20,20,20,37,38,44,36,43,43,82,43,83,74,77,0,80,19,279,267,205,0,0,0,0,0,0,0,0,0,0]} 1. e4 c5 2. Nf3 d6 3. Bb5+ Bd7 4. Bxd7+ Nxd7 5. O-O Ngf6 6. Qe2 e6 7. c4 Rc8 8. b3 a6 9. d4 cxd4 10. Nxd4 Qa5 11. Bb2 Be7 12. Nc3 O-O 13. Kh1 {B52: Sicilian: Moscow Variation with 3...Bd7.} Qh5 {[#]} 14. f3 $146 ({Predecessor:} 14. Qxh5 Nxh5 15. Rad1 g5 16. Nde2 Rfd8 17. f3 Ne5 18. Rd2 Rb8 19. Nd4 Nf6 20. Rfd1 Ne8 21. g3 Nc7 22. f4 Ng6 23. Nce2 h6 24. Kg2 {½-½ (24) Krause,B (1960)-Moritz,A (2163) Oberhof 2012}) 14... Rfe8 15. Qd2 {White has an edge.} Bd8 16. Nde2 {[%cal Bd4e2,Be2f4,Bf4d3,Bd3c5][%mdl 32]} Bc7 {[%cal Od6d5]} 17. g3 Bb8 {[%cal Od6d5]} 18. Rad1 Ne5 19. Nf4 Qh6 20. Nd3 Qxd2 21. Rxd2 Nc6 22. Kg2 Red8 23. Rfd1 d5 24. cxd5 (24. Nc5 {looks sharper.} dxc4 25. Rxd8+ Rxd8 26. bxc4 Ba7 27. Rxd8+ Nxd8 28. Nd3) 24... exd5 25. Nc5 {[%csl LRb7,LRd5]} dxe4 $1 26. N3xe4 (26. fxe4 {seems wilder.} Rxd2+ 27. Rxd2 Be5 28. Nd5) 26... Nxe4 27. fxe4 Rxd2+ 28. Rxd2 Nd8 29. Rd7 {[%cal Og2f3]} Kf8 30. Nxb7 Nxb7 31. Rxb7 $11 {[%mdl 4096] Endgame White wants to play Kf3. KRB-KRB} Rc2+ 32. Kf3 Rxb2 33. Rxb8+ {KR-KR} Ke7 34. Rb7+ Ke8 35. a4 {[%cal Ba2a4,Ba4a5][%mdl 32] And now h4 would win.} Rxh2 36. a5 Ra2 37. b4 h5 38. Kf4 Ra3 $1 39. Rb6 Rb3 40. Rb7 Ra3 41. e5 (41. Ke5 $16) 41... g5+ $2 {[%mdl 8192]} (41... g6 $11) 42. Kxg5 $18 Rxg3+ {[#]} 43. Kh4 $2 ({Don't play} 43. Kxh5 $6 Re3 $14) ({White must play} 43. Kf5 $1 $18 {b5 is the strong threat.} Ra3 44. Rb6) 43... Rg4+ $11 {The position is equal.} 44. Kh3 {Hoping for b5.} Rg6 $1 45. Ra7 Re6 46. Ra8+ Kd7 47. Ra7+ Kc8 {Weighted Error Value: White=0.19 (very precise) /Black=0.17 (very precise)} 1/2-1/2

[Event "2nd Doppelbauer Kiel GM 2022"]
[Site "Kiel"]
[Date "2022.06.30"]
[Round "2.1"]
[White "Parvanyan, Ashot"]
[Black "Teclaf, Pawel"]
[Result "0-1"]
[ECO "D23"]
[WhiteElo "2455"]
[BlackElo "2537"]
[Annotator "TA"]
[PlyCount "118"]
[EventDate "2022.06.30"]
[EventType "tourn"]
[EventCountry "GER"]
[SourceTitle "playchess.com"]
[Source "ChessBase"]
[SourceQuality "1"]
[TimeControl "40/5400+30:1800+30"]

{[%evp 16,118,25,24,11,8,27,17,20,0,0,0,0,0,0,0,-3,-24,0,-41,-47,-47,-49,-41,-41,-39,-44,-34,-43,-37,-37,-44,-38,-114,-102,-102,-105,-110,-83,-137,-138,-134,-141,-160,-164,-255,-208,-192,-208,-322,-258,-231,-262,-318,-311,-309,-302,-432,-432,-432,-432,-408,-380,-374,-383,-410,-404,-416,-411,-410,-403,-403,-403,-442,-418,-418,-408,-407,-407,-407,-342,-462,-444,-462,-462,-458,-393,-376,-355,-578,-568,-538,-529,-29974,-29975,-29975,-29976,-29980,-29981,-29981,-29982,-29982,-29983,-29983,-29983]} 1. Nf3 {[%emt 0:00:04]} Nf6 {[%emt 0:00:05]} 2. c4 {[%emt 0:00:10]} c6 {[%emt 0:00:04]} 3. d4 {[%emt 0:03:48]} d5 {[%emt 0:00:11]} 4. Qb3 {[%emt 0:02:22]} dxc4 {[%emt 0:00:27]} 5. Qxc4 {[%emt 0:00:03]} Bf5 {[%emt 0:00:09]} 6. g3 {[%emt 0:00:52]} e6 {[%emt 0:00:21]} 7. Bg2 {[%emt 0:00:05]} Nbd7 {[%emt 0:00:22]} 8. O-O {[%emt 0:00:17]} Be7 {[%emt 0:00:09]} 9. e3 {[%emt 0:02:08]} O-O {[%emt 0:00:18] D23: Queen's Gambit Accepted: 3 Nf3 Nf6 sidelines.} 10. Qe2 {[%emt 0:00:05] 10.Qe2 is better than 10.Rd1.} Bg6 {[%emt 0:00:15]} 11. Nc3 {[%emt 0:03:39]} Ne4 {[%emt 0:07:47] The position is equal.} 12. Nd2 {[%emt 0:12:19]} Nxc3 {[%emt 0:18:57]} 13. bxc3 {[%emt 0:00:05]} Qa5 {[%emt 0:00:04]} 14. Bb2 {[%emt 0:07:25]} Nb6 {[%emt 0:00:19] [#]} 15. a4 $146 {[%emt 0:15:48]} ({Predecessor:} 15. Nb3 Qa4 16. e4 Rfe8 17. Rfe1 Nc4 18. Bc1 b5 19. h4 h6 20. h5 Bh7 21. f4 {1-0 (45) Janzelj,T (2395)-Nikolova,A (2272) Deutschlandsberg 2019}) 15... Nxa4 {[%emt 0:10:37]} 16. c4 {[%emt 0:01:04]} a6 {[%emt 0:22:02][%cal Oa5b6]} 17. Nb3 {[%emt 0:18:57]} Qb6 {[%emt 0:09:02]} 18. Ba3 $1 {[%emt 0:00:14]} Qxb3 {[%emt 0:07:38]} 19. Bxe7 {[%emt 0:00:15] [#] Hoping for Ra3.} Rfe8 {[%emt 0:08:27]} 20. Ra3 {[%emt 0:10:36]} Qb2 {[%emt 0:01:27]} 21. Qxb2 {[%emt 0:02:03]} Nxb2 {[%emt 0:00:05]} 22. Rb3 {[%emt 0:00:29][%csl LRb2,LRb7]} Rxe7 {[%emt 0:01:34]} 23. Rxb2 {[%emt 0:00:03]} Kf8 {[%emt 0:01:18]} 24. d5 {[%emt 0:03:08] White is on the road to losing.} (24. Ra1 $15) 24... exd5 $17 {[%emt 0:00:40]} 25. cxd5 {[%emt 0:00:03]} cxd5 {[%emt 0:00:05]} 26. Bxd5 {[%emt 0:00:04]} Rd8 {[%emt 0:00:20]} 27. Bf3 {[%emt 0:04:23]} (27. e4 $142) 27... b5 {[%emt 0:01:39]} 28. Ra1 {[%emt 0:00:34]} Rd6 {[%emt 0:01:35]} 29. Rba2 {[%emt 0:02:30]} Ra7 {[%emt 0:03:17] Black is more active.} 30. Rc1 {[%emt 0:03:44]} (30. Kf1 {is a better defense.}) 30... Bd3 {[%emt 0:01:31]} 31. Rc8+ {[%emt 0:03:15]} Ke7 {[%emt 0:00:04] White must now prevent ...a5.} 32. e4 {[%emt 0:01:30]} (32. Ra5 {was the only chance.}) 32... Bc4 {[%emt 0:00:26]} 33. Ra5 {[%emt 0:00:39]} Rb6 {[%emt 0:01:11]} 34. e5 {[%emt 0:01:25]} Be6 {[%emt 0:00:53]} 35. Rc2 {[%emt 0:01:59]} b4 {[%emt 0:00:46]} 36. Be2 {[%emt 0:00:57]} (36. Rb2 $142) 36... b3 $19 {[%emt 0:01:23]} 37. Rb2 {[%emt 0:00:04]} Rc7 {[%emt 0:01:56]} 38. Bd3 {[%emt 0:01:50] Prevents Rc2.} Rc3 {[%emt 0:01:02]} 39. Be4 {[%emt 0:00:05]} g6 {[%emt 0:01:01]} 40. Kg2 {[%emt 0:00:42]} h5 {[%emt 0:00:31]} 41. h4 {[%emt 0:30:23]} Rb5 {[%emt 0:04:22]} 42. Rxa6 {[%emt 0:00:00]} Rxe5 {[%emt 0:00:14]} 43. Ba8 {[%emt 0:00:00]} Re1 {[%emt 0:06:42] Inhibits Ra1.} 44. Bb7 {[%emt 0:00:00]} Bc4 {[%emt 0:02:10] Threatens to win with ...Bf1+.} 45. Rb6 {[%emt 0:00:00]} Rec1 {[%emt 0:05:24]} 46. Rb4 {[%emt 0:00:00]} Be6 {[%emt 0:00:26]} 47. Be4 {[%emt 0:00:00]} Kf6 {[%emt 0:01:52]} 48. Rb5 {[%emt 0:00:00]} Bc4 {[%emt 0:02:12]} 49. Rb4 {[%emt 0:00:00]} Ke5 {[%emt 0:02:35]} 50. Bb7 {[%emt 0:00:00]} Be6 {[%emt 0:02:29]} 51. Bf3 {[%emt 0:00:00]} Ra1 {[%emt 0:01:48]} 52. Rb5+ $2 {[%emt 0:00:41]} (52. Rd2 {was necessary.}) 52... Kd4 {[%emt 0:01:52] Strongly threatening ...Bc4.} 53. Re2 {[%emt 0:05:39] [#]} Rxf3 $1 {[%emt 0:01:15][%mdl 512]} 54. Rxe6 {[%emt 0:00:13]} (54. Kxf3 Bg4+) 54... fxe6 {[%emt 0:00:11] Black mates.} 55. Kxf3 {[%emt 0:00:03] KR-KR} Kc3 {[%emt 0:00:06]} 56. Ke4 {[%emt 0:00:23]} b2 {[%emt 0:00:36]} 57. Ke5 {[%emt 0:00:04]} b1=Q {[%emt 0:00:28]} 58. Rxb1 {[%emt 0:00:13]} Rxb1 {[%emt 0:00:04]} 59. Kxe6 {[%emt 0:00:03]} Kd4 {[%emt 0:00:09] Weighted Error Value: White=0.30/Black=0.08 (flawless)} 0-1

[Event "2nd Doppelbauer Kiel GM 2022"]
[Site "Kiel"]
[Date "2022.06.30"]
[Round "2.2"]
[White "Farokhi, Keyvan"]
[Black "Hacker, Jonas"]
[Result "1/2-1/2"]
[ECO "B45"]
[WhiteElo "2360"]
[BlackElo "2396"]
[Annotator "TA"]
[PlyCount "54"]
[EventDate "2022.06.30"]
[EventType "tourn"]
[EventCountry "GER"]
[SourceTitle "playchess.com"]
[Source "ChessBase"]
[SourceQuality "1"]
[TimeControl "40/5400+30:1800+30"]

{[%evp 11,54,22,47,25,25,22,31,32,31,21,29,22,30,-85,-88,-85,-78,-110,-11,-18,-15,-75,-40,-39,-43,-47,-47,-74,-2,-116,0,-79,-31,-74,-58,-68,-57,-35,0,0,0,-37,0,0,0]} 1. e4 {[%emt 0:00:06]} c5 {[%emt 0:00:29]} 2. Nf3 {[%emt 0:00:11][%cal Bg1f3,Bf3d4,Bd4b5,Bb5d6,Bd6f5][%mdl 32]} e6 {[%emt 0:00:06]} 3. d4 {[%emt 0:00:07]} cxd4 {[%emt 0:00:06]} 4. Nxd4 {[%emt 0:00:05]} Nf6 {[%emt 0:00:09]} 5. Nc3 {[%emt 0:00:13]} Nc6 {[%emt 0:00:07]} 6. Ndb5 {[%emt 0:00:32]} Bc5 {[%emt 0:00:41]} 7. Nd6+ {[%emt 0:00:29] B45: Sicilian Four Knights.} Ke7 $1 {[%emt 0:00:31]} 8. Bf4 {[%emt 0:00:08]} e5 {[%emt 0:00:30]} 9. Nf5+ {[%emt 0:00:07] White is slightly better.} Kf8 {[%emt 0:00:08]} 10. Bg5 {[%emt 0:00:05]} d6 {[%emt 0:00:33]} 11. Bd3 {[%emt 0:00:35]} h6 {[%emt 0:10:04]} 12. Bh4 {[%emt 0:09:28] [#]} (12. Bxf6 $11 Qxf6 13. Nd5) 12... g5 $146 {[%emt 0:07:34]} ({Predecessor:} 12... Be6 13. O-O g6 14. Qd2 Bxf5 15. exf5 g5 16. Bg3 Ne7 17. Ne4 Nxf5 18. Nxc5 Nxg3 19. fxg3 dxc5 {1-0 (43) Patrelakis,E (2155)-Panagiotakos,N (2120) Hersonissos 2019}) 13. Bg3 {[%emt 0:00:32]} Bxf5 {[%emt 0:00:50]} 14. exf5 {[%emt 0:00:11]} Bb4 {[%emt 0:03:10]} (14... d5 $17 {Threatening ...Kg7.} 15. h4 Kg7) 15. h4 $11 {[%emt 0:15:48] aiming for hxg5.} Kg7 {[%emt 0:06:17]} 16. Kf1 {[%emt 0:03:02]} (16. O-O $11) 16... Bxc3 {[%emt 0:04:10]} (16... d5 $5 {[%cal Ra7a6]}) 17. bxc3 {[%emt 0:00:03]} Qe7 $36 {[%emt 0:02:56][%mdl 2048] Black is pushing.} 18. Rb1 {[%emt 0:20:59]} Rac8 {[%emt 0:04:24]} 19. Qe2 {[%emt 0:03:12]} Nd5 {[%emt 0:10:54]} ({Better is} 19... g4 $17) 20. Qg4 {[%emt 0:05:07]} (20. Qd2 $1 $11 {keeps the balance.}) 20... Nf6 {[%emt 0:00:56]} 21. Qe2 {[%emt 0:03:33]} a6 {[%emt 0:03:20]} (21... g4 $17) 22. Kg1 {[%emt 0:03:47] [#]} e4 $1 {[%emt 0:07:09]} 23. Bc4 {[%emt 0:04:04]} d5 {[%emt 0:00:50]} 24. Qe3 $1 {[%emt 0:03:05][%cal Oh4g5]} Ng4 {[%emt 0:17:28] Pair of Knights!} ({Resist} 24... dxc4 25. hxg5 Ng4 26. f6+ Kg6 27. fxe7 $16) 25. Qe2 {[%emt 0:00:07]} Nf6 $1 {[%emt 0:01:29]} (25... dxc4 26. Qxg4 Rce8 27. hxg5 hxg5 28. Rxh8 Rxh8 29. Re1 $16) 26. Qe3 $1 {[%emt 0:02:48][%cal Oh4g5]} Ng4 {[%emt 0:03:10]} ({But not} 26... dxc4 27. hxg5 Ng4 28. f6+ Kg6 29. fxe7 $16) 27. Qe2 {[%emt 0:00:07] Bxa6 is the strong threat.} Nf6 $1 {[%emt 0:04:14] Weighted Error Value: White=0.25 (precise) /Black=0.25 (precise)} ({Much less strong is} 27... dxc4 28. Qxg4 Rce8 29. hxg5 hxg5 30. Rxh8 Rxh8 31. Re1 $16) 1/2-1/2

[Event "2nd Doppelbauer Kiel GM 2022"]
[Site "Kiel"]
[Date "2022.06.30"]
[Round "2.3"]
[White "Meshkovs, Nikita"]
[Black "Pajeken, Jakob Leon"]
[Result "1-0"]
[ECO "A23"]
[WhiteElo "2553"]
[BlackElo "2398"]
[Annotator "TA"]
[PlyCount "69"]
[EventDate "2022.06.30"]
[EventType "tourn"]
[EventCountry "GER"]
[SourceTitle "playchess.com"]
[Source "ChessBase"]
[SourceQuality "1"]
[TimeControl "40/5400+30:1800+30"]

{[%evp 9,69,22,29,20,68,47,89,104,140,135,154,141,150,139,242,108,98,97,106,97,96,96,102,83,210,115,111,117,116,116,291,276,345,124,124,116,117,129,121,104,116,100,157,145,258,265,272,254,265,271,261,271,309,298,404,403,383,400,439,431,412,371]} 1. c4 {[%emt 0:00:30]} e5 {[%emt 0:00:13][%cal Be7e5,Be5e4][%mdl 32]} 2. Nc3 {[%emt 0:00:17]} Nf6 {[%emt 0:00:06]} 3. g3 {[%emt 0:01:39]} c6 {[%emt 0:01:47]} 4. Nf3 {[%emt 0:01:04]} e4 {[%emt 0:01:48]} 5. Nd4 {[%emt 0:00:04]} Qb6 {[%emt 0:04:15]} 6. e3 {[%emt 0:14:50] A23: English Opening: 1...e5 2 Nc3 Nf6 3 g3 c6.} Na6 {[%emt 0:09:38]} (6... Bb4 $11) 7. a3 {[%emt 0:02:57] [#]} d5 $146 {[%emt 0:18:01]} ({Predecessor:} 7... Be7 8. Qc2 d5 9. Na4 Qd8 10. c5 Nc7 11. b4 O-O 12. Bb2 Ne6 13. Nf5 Ng5 14. Nxe7+ Qxe7 15. Be2 Bg4 16. Qc3 Bf3 17. Bxf3 Nxf3+ 18. Ke2 Qe6 19. h3 d4 20. exd4 Rad8 {0-1 (20) Vermaas,F (1405)-Iacobitz,L (1502) IECG email 2007}) 8. cxd5 {[%emt 0:04:09] White is better.} cxd5 {[%emt 0:01:05]} 9. Bb5+ {[%emt 0:01:46]} Bd7 {[%emt 0:01:35]} 10. Bxd7+ {[%emt 0:00:05]} Kxd7 {[%emt 0:00:04]} 11. b4 {[%emt 0:01:34] Prevents Bc5.} Bd6 {[%emt 0:01:35]} (11... Nc7 $16) 12. Qa4+ {[%emt 0:04:45]} (12. Qb3 $18 {has better winning chances.}) 12... Ke7 $16 {[%emt 0:01:33]} 13. Qb3 {[%emt 0:01:11]} Rhe8 {[%emt 0:03:33]} 14. Nxd5+ {[%emt 0:02:19]} Nxd5 {[%emt 0:00:06]} 15. Qxd5 {[%emt 0:00:03]} Kf8 {[%emt 0:00:20]} 16. Bb2 {[%emt 1:01:17]} Re5 {[%emt 0:05:54]} (16... Nc7 $16 {keeps fighting.} 17. Qa2 a5) 17. Qc4 {[%emt 0:00:00]} (17. Qb3 $18) 17... Nc5 {[%emt 0:03:35] [#] Strongly threatening ...Nd3+.} 18. O-O {[%emt 0:00:00][%cal Be1g1,Bg1g2,Bg2f3,Bf3e2][%mdl 32]} Nd3 {[%emt 0:01:30]} 19. Bc3 {[%emt 0:00:00] Threatens to win with f3.} Qd8 $2 {[%emt 0:10:20]} (19... Qc7 $16 20. Qxc7 Bxc7) 20. f3 $18 {[%emt 0:00:00] And now fxe4 would win.} Qc8 {[%emt 0:05:27]} 21. Qxc8+ {[%emt 0:00:00]} (21. Qa2 $18 {and White stays clearly on top.}) 21... Rxc8 $16 {[%emt 0:00:04]} 22. Kg2 {[%emt 0:00:00]} g6 {[%emt 0:05:47]} 23. fxe4 {[%emt 0:00:00]} Rxe4 {[%emt 0:00:29]} 24. Nb5 {[%emt 0:00:00]} Bb8 {[%emt 0:03:30]} 25. Kf3 $36 {[%emt 0:00:00][%mdl 2048] Black is under strong pressure.} f5 {[%emt 0:01:12]} ({Black should play} 25... Ree8) 26. Ke2 {[%emt 0:00:00]} a6 {[%emt 0:02:54] [#]} (26... Ne5 $16 27. d3 Rg4) 27. Nd4 $1 $18 {[%emt 0:00:00][%cal Bb5d4,Bd4e6,Be6c5][%mdl 32]} ({Less strong is} 27. Kxd3 axb5 28. a4 Be5 $16) 27... Ne5 {[%emt 0:01:03]} 28. Ne6+ {[%emt 0:00:00]} Ke7 {[%emt 0:01:28]} 29. Nc5 {[%emt 0:00:00]} Rc4 {[%emt 0:00:36]} 30. Nxb7 {[%emt 0:00:00]} Ng4 {[%emt 0:01:20]} 31. h3 {[%emt 0:00:00]} Nf6 {[%emt 0:00:51]} 32. Bxf6+ {[%emt 0:00:00]} Kxf6 {[%emt 0:00:05]} 33. Nc5 {[%emt 0:00:00]} Rd8 {[%emt 0:01:57]} 34. Ra2 {[%emt 0:00:00] Against Rc2} Bxg3 {[%emt 0:02:06]} 35. d4 {[%emt 0:00:00] Weighted Error Value: White=0.19 (very precise) /Black=0.36} ({Weaker is} 35. d3 Rh4 $18) 1-0